Cogmind - Beta 17 @@@ ROGUE MODE // 2026.08.15 @ 18:56:18 Player: MiniMilk Result: Destroyed by Y-45 Defender with Heavy Assault Rifle Performance ------------- Evolutions (2) 1000 Regions Visited (4) 800 Robots Destroyed (7) 35 Value Destroyed (276) 276 Prototype IDs (0) 0 Alien Tech Used (0) 0 Bonus (0) 0 TOTAL SCORE: 2111 Bonus ------- None Cogmind --------- Core Integrity 0/550 Matter 280/300 Energy 100/100 System Corruption 2% Temperature Cool (9) Movement Treading (145) Location -8/Materials Parts ------- > --- POWER (1) -------- (None) > --- PROPULSION (3) --- Advanced Treads > --- UTILITY (5) ------ (None) > --- WEAPON (2) ------- Great Maul > --- INVENTORY (5) ---- Light Ion Engine Small Storage Unit Melee Analysis Suite Weapon Shielding Peak State ------------ > --- POWER ------------ Improved Ion Engine > --- PROPULSION ------- Wheel Wheel > --- UTILITY ---------- Small Storage Unit Medium Battery Light Armor Plating > --- WEAPON ----------- Assault Rifle Mini Grenade Launcher > --- INVENTORY -------- Ion Engine Light Ion Engine Improved Heat Sink Weapon Shielding Assault Rifle [Rating: 10] Favorites ----------- Power Ion Engine Engine Ion Engine Propulsion Wheel Treads Advanced Treads Leg Carbon-fiber Leg Wheel Wheel Utility Small Storage Unit Storage Small Storage Unit Protection Light Armor Plating Weapon Assault Rifle Ballistic Gun Assault Rifle Launcher Mini Grenade Launcher Impact Weapon Hammer Build | -11 -10 -9 -9 -8 ------- Run | Yrd Mat Mat Min Mat Slots Evolved 4 | . . 2 . 2 Power . | . . . . . Propulsion 1 | . . 1 . . Utility 3 | . . 1 . 2 Weapon . | . . . . . Parts Attached 15 | 6 2 3 1 3 Power 3 | 2 . 1 . . Engine 3 | 2 . 1 . . Core . | . . . . . Reactor . | . . . . . Propulsion 4 | 2 . . . 2 Treads 1 | . . . . 1 Leg 1 | . . . . 1 Wheel 2 | 2 . . . . Hover . | . . . . . Flight . | . . . . . Utility 3 | . 2 1 . . Device . | . . . . . Storage 2 | . 2 . . . Processor . | . . . . . Hackware . | . . . . . Protection 1 | . . 1 . . Artifact . | . . . . . Weapon 5 | 2 . 1 1 1 Energy Gun . | . . . . . Energy Cannon . | . . . . . Ballistic Gun 2 | 2 . . . . Ballistic Cannon . | . . . . . Launcher 1 | . . 1 . . Special Weapon . | . . . . . Impact Weapon 2 | . . . 1 1 Slashing Weapon . | . . . . . Piercing Weapon . | . . . . . Special Melee Weapon . | . . . . . Unidentified Prototypes . | . . . . . Parts Lost 9 | . . 1 5 3 Power 1 | . . . 1 . Propulsion 3 | . . 1 1 1 Utility 1 | . . . 1 . Weapon 4 | . . . 2 2 Highest Loss Streak 5 | . . 1 5 3 To Critical Strikes 1 | . . . . 1 Average Backups 3 | . 1 3 4 4 Power . | . 1 1 1 . Propulsion . | . . . . . Utility 2 | . . 2 2 2 Weapon . | . . . 1 . Tool/Special . | . . . . . Unused Backups 3 | . . . . 3 Power . | . . . . . Propulsion . | . . . . . Utility 3 | . . . . 3 Weapon . | . . . . . Tool/Special . | . . . . . Average Slot Usage (%) 43 | . 97 79 58 11 Engine 5 | . 14 11 6 . Wheel 8 | . 28 20 7 . Storage 11 | . 25 22 22 . Protection 1 | . . 3 6 . Ballistic Gun 8 | . 28 13 7 1 Launcher 1 | . . 8 5 . Impact Weapon 4 | . . . 3 6 Peak Build Rating 10 | 5 7 10 9 6 Average Rating 4 | 3 6 8 6 2 On Entrance 5 | . 5 7 9 4 Avg Prop Armor Cover (%) . | . . . . . Naked Turns 28 | . . . . 28 Heaviest Build 20 | 9 16 20 20 4 Greatest Support 22 | 20 20 20 10 22 Greatest Overweight (x) 2 | . . 1 2 . Average Overweight (x) . | . . . 1 . Largest Inventory Capacity 8 | 5 8 8 8 8 Average Capacity 6 | 5 7 8 8 5 Most Carried 5 | 1 3 5 5 5 Average Carried 3 | . 1 3 4 4 Final Capacity 8 | 5 8 8 8 5 Final Carried 5 | 1 3 4 5 4 Class Distribution -------------------- 100% | Mutant Dominant Class ---------------- Mutant | -10/Materials Mutant | -9/Materials Mutant | -9/Mines Mutant | -8/Materials Resources | -11 -10 -9 -9 -8 ----------- Run | Yrd Mat Mat Min Mat Matter Collected 473 | 290 31 48 66 38 Remotely . | . . . . . Salvage Created 313 | 43 91 48 71 60 Parts 18 | 1 4 5 4 4 Haulers Intercepted . | . . . . . Recyclers Shooed . | . . . . . Parts Field Recycled . | . . . . . Retrieved Matter . | . . . . . Parts Self-Destructed . | . . . . . Prevented . | . . . . . Parts Restored . | . . . . . Kills | -11 -10 -9 -9 -8 ------- Run | Yrd Mat Mat Min Mat Combat Hostiles Destroyed 7 | 1 2 1 2 1 Melee 1 | . . . 1 . Guns 6 | 1 2 1 1 1 Classes Destroyed 3 | 1 . 1 1 . Grunt 4 | 1 2 . 1 . Brawler 2 | . . . 1 1 Sentry 1 | . . 1 . . Best Kill Streak 2 | 1 1 1 2 1 Combat Bots Only 2 | 1 1 1 2 1 Max Kills in Single Turn 1 | 1 1 1 1 1 Gunslinging . | . . . . . Exploded . | . . . . . Melee 1 | . . . 1 . Uniques/NPCs Destroyed . | . . . . . Combat | -11 -10 -9 -9 -8 -------- Run | Yrd Mat Mat Min Mat Hostile Shots Fired 170 | 6 18 12 55 79 Missed 55 | 2 9 5 13 26 Hits 115 | 4 9 7 42 53 Melee 13 | . . . 11 2 Projectile 102 | 4 9 7 31 51 AOE 2 | . . . 2 . Critical Strikes 8 | . 1 . 2 5 Damage Taken 1854 | 43 110 98 754 849 Core 944 | . 45 13 321 565 Absorbed by Shields . | . . . . . Core Remaining (%) 66 | 100 82 . 16 . Volleys Fired 39 | 5 12 7 8 7 Largest 2 | 2 2 2 1 1 Hottest 50 | 40 40 50 20 20 Shots Fired 56 | 10 24 8 7 7 Gun 55 | 10 24 7 7 7 Cannon . | . . . . . Launcher 1 | . . 1 . . Special . | . . . . . Kinetic 55 | 10 24 7 7 7 Thermal . | . . . . . Explosive 1 | . . 1 . . Electromagnetic . | . . . . . Robot Hit Streak 11 | 5 7 9 10 11 Robot Miss Streak 2 | 1 2 1 . 1 Penetration Max . | . . . . . Secondary Targets . | . . . . . Shots Hit Robots 46 | 9 15 7 10 5 Core Hits 16 | 2 6 2 3 3 Critical Kills . | . . . . . Critical Parts Destroyed 1 | . 1 . . . Critical Strikes 1 | . 1 . . . Destroy 1 | . 1 . . . Melee Attacks 3 | . . . 3 . Impact 3 | . . . 3 . Slashing . | . . . . . Piercing . | . . . . . Sneak Attacks . | . . . . . Combat Hostiles . | . . . . . Follow-up Attacks . | . . . . . Damage Inflicted 624 | 114 179 96 163 72 Guns 526 | 114 179 77 92 64 Cannons . | . . . . . Explosions 19 | . . 19 . . Melee 71 | . . . 71 . Ramming 8 | . . . . 8 Kinetic 526 | 114 179 77 92 64 Thermal . | . . . . . Explosive 19 | . . 19 . . Electromagnetic . | . . . . . Impact 71 | . . . 71 . Slashing . | . . . . . Piercing . | . . . . . Highest Corruption 4 | . . . 4 2 Average Corruption 2 | . . . 4 2 Corruption Purged . | . . . . . Corruption Blocked . | . . . . . Effects 2 | . . . 2 . Parts Fused 1 | . . . 1 . Weapon Failures 1 | . . . 1 . Overload Shots . | . . . . . Overflow Damage . | . . . . . Projectiles . | . . . . . Explosions . | . . . . . Melee . | . . . . . Knockbacks . | . . . . . Impact . | . . . . . Kinetic . | . . . . . Secondary . | . . . . . Self-Inflicted Damage 3 | . . . . 3 Shots . | . . . . . Rammed 2 | . . . . 2 Targets Rammed 2 | . . . . 2 Kicked . | . . . . . Crushed . | . . . . . Highest Temperature 20 | . 20 . 1 . Average Temperature 8 | . 9 . 1 . Received Heat Transfer 720 | 24 81 27 138 450 Siege Activations . | . . . . . Martial Activations . | . . . . . Shielding Activations . | . . . . . Robots Disrupted . | . . . . . Combat Hostiles . | . . . . . Robots Corrupted . | . . . . . Combat Hostiles . | . . . . . Parts Fried . | . . . . . Impact Corruptions . | . . . . . Robots Melted . | . . . . . Combat Hostiles . | . . . . . Parts Melted . | . . . . . Heat Transferred . | . . . . . Parts Sabotaged . | . . . . . Parts Stolen . | . . . . . Parts Stripped . | . . . . . Power Chain Reactions . | . . . . . Alert | -11 -10 -9 -9 -8 ------- Run | Yrd Mat Mat Min Mat Maximum Alert Level . | . . . . . Low Security (%) 100 | 100 100 100 100 100 Level 1 . | . . . . . Level 2 . | . . . . . Level 3 . | . . . . . Level 4 . | . . . . . Level 5 . | . . . . . High Security . | . . . . . Max Security . | . . . . . Peak Influence 153 | 20 40 55 45 153 Initial 12 | . 6 12 9 5 Average 16 | 2 6 21 14 20 Influence Increases 470 | 20 50 55 110 235 Destroy 0b10 Robot/C 140 | 20 40 20 40 20 Destroy Leader 30 | . 10 10 10 . Successful Hack 5 | . . . . 5 Disable Machine 15 | . . 15 . . Destroy Structure 10 | . . 10 . . Partial Spotted 15 | . . . . 15 Lose Combat Pursuer 255 | . . . 60 195 Influence Decreases 333 | 10 30 60 120 113 Entered New Map 48 | . 4 18 16 10 Time Decay 200 | 10 26 32 54 78 Lost Part 80 | . . 10 50 20 Purge Threat 5 | . . . . 5 Squads Dispatched 3 | . . . . 3 Investigation 1 | . . . . 1 Extermination . | . . . . . Reinforcement 1 | . . . . 1 Assault 1 | . . . . 1 Garrison . | . . . . . Intercept . | . . . . . Searches Triggered . | . . . . . Construction Impeded . | . . . . . Haulers Reinforced . | . . . . . Active Scanning Responses . | . . . . . Cargo Convoy Interrupts . | . . . . . Stealth | -11 -10 -9 -9 -8 --------- Run | Yrd Mat Mat Min Mat Distress Signals . | . . . . . Communications Jammed . | . . . . . Distress Signals . | . . . . . Times Spotted 59 | 1 3 2 36 17 Peak Tracking Total 23 | 1 3 1 23 12 Tactical Retreats 9 | . . . 4 5 Traps | -11 -10 -9 -9 -8 ------- Run | Yrd Mat Mat Min Mat Traps Triggered . | . . . . . Indirectly . | . . . . . Trap Hack Attempts . | . . . . . Triggered . | . . . . . Disarmed . | . . . . . Reprogrammed . | . . . . . Reused . | . . . . . Traps Extracted . | . . . . . Installed . | . . . . . Triggered . | . . . . . Machines | -11 -10 -9 -9 -8 ---------- Run | Yrd Mat Mat Min Mat Machines Disabled 1 | . . 1 . . Max in Single Turn 1 | . . 1 . . Machines Repaired . | . . . . . Machines Dismantled . | . . . . . Machines Sabotaged . | . . . . . Overloaded Fab Kills . | . . . . . Hacking | -11 -10 -9 -9 -8 --------- Run | Yrd Mat Mat Min Mat Machines Accessed 3 | . 1 . . 2 Terminals 3 | . 1 . . 2 Fabricators . | . . . . . Repair Stations . | . . . . . Recycling Units . | . . . . . Scanalyzers . | . . . . . Garrison Access . | . . . . . Total Hacks 7 | . 1 . . 6 Successful 6 | . 1 . . 5 Failed 1 | . . . . 1 Catastrophic . | . . . . . Database Lockouts . | . . . . . Manual . | . . . . . Terminals 7 | . 1 . . 6 Fabricators . | . . . . . Repair Stations . | . . . . . Recycling Units . | . . . . . Scanalyzers . | . . . . . Garrison Access . | . . . . . Terminal Hacks 6 | . 1 . . 5 Record 2 | . 1 . . 1 Alert Level 1 | . . . . 1 Unreport Threat 1 | . . . . 1 Dispatch Records 1 | . . . . 1 Hauler Manifests 1 | . . . . 1 Fabricator Hacks . | . . . . . Repair Station Hacks . | . . . . . Recycling Unit Hacks . | . . . . . Scanalyzer . | . . . . . Garrison Access Hacks . | . . . . . Unauthorized Hacks . | . . . . . Terminals . | . . . . . Fabricators . | . . . . . Repair Stations . | . . . . . Recycling Units . | . . . . . Scanalyzers . | . . . . . Garrison Access . | . . . . . Data Cores Recovered . | . . . . . Used . | . . . . . Hacking Detections 3 | . 1 . . 2 Full Trace Events 1 | . . . . 1 Feedback Events . | . . . . . Feedback Blocked . | . . . . . Robot Schematics Acquired . | . . . . . Robots Built . | . . . . . Authchips . | . . . . . Time . | . . . . . Total Robot Build Rating . | . . . . . Part Schematics Acquired . | . . . . . Parts Built . | . . . . . Authchips . | . . . . . Time . | . . . . . Total Part Build Rating . | . . . . . Part Studies Acquired . | . . . . . Parts Repaired . | . . . . . Time . | . . . . . Parts Recycled . | . . . . . Recycled Matter . | . . . . . Retrieved Matter . | . . . . . Retrieved Components . | . . . . . Parts Scanalyzed . | . . . . . Part Schematics Acquired . | . . . . . Parts Damaged . | . . . . . Bothacking | -11 -10 -9 -9 -8 ------------ Run | Yrd Mat Mat Min Mat Used RIF Installer . | . . . . . Robots Hacked . | . . . . . Non-combat . | . . . . . Combat . | . . . . . Robot Hacks Applied . | . . . . . Relay Couplers Released . | . . . . . Fabnet Peak Effective % . | . . . . . Robots Rewired . | . . . . . Allies Hacked . | . . . . . Hacks Repelled . | . . . . . Allies | -11 -10 -9 -9 -8 -------- Run | Yrd Mat Mat Min Mat Total Allies . | . . . . . Largest Group . | . . . . . Highest-Rated Group . | . . . . . Highest-Rated Ally . | . . . . . Total Orders . | . . . . . Ally Attacks . | . . . . . Total Damage . | . . . . . Kills . | . . . . . Allies Corrupted . | . . . . . Allies Melted . | . . . . . Intel | -11 -10 -9 -9 -8 ------- Run | Yrd Mat Mat Min Mat Active Infowar (turns) . | . . . . . Robot Analysis Total . | . . . . . Derelict Logs Recovered 2 | . . . 2 . Drone Launches . | . . . . . Drone Recoveries . | . . . . . Exploration | -11 -10 -9 -9 -8 ------------- Run | Yrd Mat Mat Min Mat Turns Passed 1039 | 68 191 97 157 526 Spaces Moved 667 | 61 176 93 117 220 Core 159 | 21 . . 35 103 Treads 74 | . . . . 74 Legs 43 | . . . . 43 Wheels 391 | 40 176 93 82 . Hover . | . . . . . Flight . | . . . . . Fastest Speed 50 | 50 80 80 95 50 Average Speed 90 | 69 80 82 111 95 Slowest Speed 150 | 80 80 95 150 145 Overloaded Moves . | . . . . . Propulsion Burnouts . | . . . . . Robots Hopped . | . . . . . Potential Cave-ins . | . . . . . Cave-ins Triggered . | . . . . . Exploration Rate (%) 21 | 6 36 9 34 24 Regions Visited 4 Branch Regions 1 Pre-discovered Areas . | . . . . . Known Exits Taken 1 | . . . 1 . Unknown Exits Taken 3 | 1 1 1 . . Scrap Searched . | . . . . . Spaces Dug . | . . . . . Terrain Destroyed 9 | . . 9 . . Melee . | . . . . . Projectile . | . . . . . AOE 9 | . . 9 . . Terrain Rammed . | . . . . . Walls Destroyed . | . . . . . Machines Disabled . | . . . . . Actions | -11 -10 -9 -9 -8 --------- Run | Yrd Mat Mat Min Mat Total 1038 | 74 200 104 130 530 Wait 301 | 1 9 . 1 290 Move 663 | 60 175 92 116 220 Hop . | . . . . . Pick Up 7 | 2 2 1 1 1 Fast Attach 10 | 3 2 1 1 3 Attach 4 | 2 . . . 2 Detach 2 | . . . . 2 Swap 3 | 1 . 2 . . Drop 4 | . . 1 . 3 Fire 39 | 5 12 7 8 7 Melee 3 | . . . 3 . Ram 2 | . . . . 2 Kick . | . . . . . Crush . | . . . . . Escape Stasis . | . . . . . Rewire . | . . . . . Trap . | . . . . . Miscellaneous . | . . . . . Route ------- -11/Scrapyard -10/Materials -9/Materials -9/Mines -8/Materials History --------- Turn | Location | Event 2 | -11/Scrapyard | Met Revision 17 41 | -11/Scrapyard | Discovered new exit (range 8) 69 | -11/Scrapyard | Entered Materials 179 | -10/Materials | Discovered new exit (range 16) 260 | -10/Materials | Entered another Materials area 260 | -9/Materials | Evolved 2 slots: Propulsion x1, Utility x1 313 | -9/Materials | Build established: Mutant 342 | -9/Materials | Discovered new exit (range 9) 357 | -9/Materials | Entered Mines 408 | -9/Mines | Identified exit to Materials 411 | -9/Mines | Assembled infested the area 416 | -9/Mines | Assisted by a Guerilla fighting off Assembled 460 | -9/Mines | Core integrity fell below 50% 483 | -9/Mines | Lost 5 parts (1p1n1u2w) 497 | -9/Mines | Core integrity fell below 20% 501 | -9/Mines | Learned Materials emergency access door positions 510 | -9/Mines | Met a Derelict testing a Signal Generator 513 | -9/Mines | Found Signal Generator 514 | -9/Mines | Entered Materials 514 | -8/Materials | Evolved 2 slots: Utility x2 904 | -8/Materials | Core integrity fell below 50% 914 | -8/Materials | Core integrity fell below 20% 933 | -8/Materials | Lost 3 parts (1n2w) 1040 | -8/Materials | Destroyed by Y-45 Defender with Heavy Assault Rifle Last Messages --------------- [Achievement: Shopping List] >>Manifests Retrieving manifest data... Found 6 haulers: A-02 Transporter 1x Imp. Heat Sink 5x Lgt. Nuclear Core A-02 Transporter 3x Hardlight Generator A-02 Transporter 2x Imp. Heat Sink 2x Imp. Targeting Computer A-02 Transporter 6x Hvy. Particle Gun A-02 Transporter 6x Imp. Medium Laser (1 escort) A-02 Transporter 3x Hvy. Mace 1x System Shield Map ----- +----------------------------------------------------+ | | | | | | | | | | | | | ????????????????????????????????????? | | ????????????????????????????????????? | | ????????????????????????????????????? | | ????????????????????????????????????? | | ????????????????????????????????????? | | ????????????????????????????????????? | | ????????????????????????????????????? | | ????????????????????????????????????? | | ????????????????????????????????????? | | ????????????????????????????????????? | | ????????????????????????????????????? | | ????????????????????????????????????? | | ????????????????????????????????????? | | ???????????????????????????????????+? | | ????????????????????????????????????? | | ????????????????????????????????????? | | ????????????????????????????????????? | | ???????????#+###????????????????????? | | ???????????+ ?????????????????????? | | ???????????#@#??????????????????????? | | ???????????# #??????????????????????? | | ???????????# #??????????????????????? | | ???????????# #??????????????????????? | | ???????????# #??????????????????????? | | ???????????# #??????????????????????? | | ???????????# #??????????????????????? | | ???????????# #??????????????????????? | | ???????????# #??????????????????????? | | ???????????# #??????????????????????? | | ???????????# #??????????????????????? | | ???????????# #??????????????????????? | | ???????????# #????####??????????????? | | ???????????# #??? ?????????????? | | ?????????###Y###?""" ????????????? | | ?????????# # """ #???????????? | | ???# ##### # """ #???????????? | | ???# T / !#???????????? | | ???#### ## # =! #???????????? | | ??????# ## # !! #???????????? | | ??????# ####+################???????? | | ??????# ## #??????? !! ???????? | | ???#### ## #??????? !!????????? | | ???# + #???????" ! ????????? | | ???# ##### """ #???????" ????????? | +----------------------------------------------------+ Best States ------------- Heat Dissipation 31 Energy Generation 12 Energy Capacity 415 Matter Stores 300 Matter Capacity 300 Sight Range 16 Terrain Scan Density 10 Armor Coverage 150 Evasion (%) 55 Recoil Reduction 1 Item Schematics ----------------- None Robot Schematics ------------------ None Fabricated ------------ Nothing Repaired ---------- Nothing Studied --------- None Alien Tech Used ----------------- None Achievements -------------- DATA ERROR: Steam Global Achievement% Everything Is Under Control Hunted I Survived The Infestation Shopping List There's More Where That Came From Challenges ------------ None Game ------ Seed TractorEfficiencyProcessor Manual? 0 Play Time 00:17:12 Cumulative 2.1 hours Start 2026.08.14 @ 22:19:36 End 2026.08.15 @ 18:56:18 Sessions 4 Manual Loads 0 Difficulty Rogue Special Mode None Game No. 2 Rogue 2 Adventurer 0 Explorer 0 Win Type - Total 0 Types 0/0/0/0/0/0/0/0/0/0 Lore% 1 Gallery% 4 Achievement% 6 Wizard Run 0 Options --------- Layout 1 ASCII 0 Keyboard 0 Movement Numpad Keybinds 0 Fullscreen 2 Font 32/SmallcapsGlow Map View 50x35 Zoom Use 0% Tactical HUD 0 Map Filters NONE Filters NONE Steam 1 RUN: 4163d8b4-58d3-4906-9b0e-fde3a9ac1ae6